bitfinex-derivatives/quotes_ETHF0:USTF0_20250403
["timestamp","ask_amount","ask_price","bid_price","bid_amount"]
[1743654945498,3.558,1831.7,1831.6,2.34962]
[1743654945690,2.123,1832.0,1831.6,1.476]
[1743654945890,0.7166,1832.2,1831.8,3.2078]
[1743654946096,0.87343,1832.0,1831.9,1.476]
[1743654946998,4.43339,1832.1,1831.9,1.476]
[1743654947201,4.43339,1832.1,1832.0,3.2078]
[1743654947903,3.56,1832.1,1832.0,3.2078]
[1743654948202,3.56,1832.1,1832.0,3.9056]
[1743654948391,3.2078,1832.7,1832.1,0.87334]
[1743654948593,1.05309809,1832.8,1832.2,4.6346]
[1743654948594,6.4044,1832.6,1832.2,4.6346]
[1743654948794,6.4044,1832.6,1832.3,1.4268]
[1743654948992,1.4333,1832.5,1832.3,1.4268]
[1743654949391,0.87324,1832.4,1832.3,1.4268]
[1743654950907,0.87328,1832.3,1832.2,3.2078]
[1743654951204,6.53158,1832.3,1832.2,3.2078]
[1743654954105,0.87338,1832.1,1832.0,3.2078]
[1743654954705,2.37158,1832.1,1832.0,3.2078]
[1743654955200,0.87347,1831.9,1831.8,1.3971]
[1743654955893,2.37167,1831.9,1831.8,1.3971]
[1743654956205,3.08167,1831.9,1831.8,1.3971]
[1743654956806,0.87352,1831.8,1831.7,3.2078]
[1743654956997,3.00192,1831.8,1831.7,3.2078]
[1743654957493,3.00192,1831.8,1831.7,4.6022]
[1743654959405,2.1284,1831.8,1831.7,4.6022]
[1743654959603,0.71,1831.9,1831.7,5.47577]
[1743654959799,0.71,1831.9,1831.8,1.37]
[1743654959800,1.58349,1831.9,1831.8,1.37]
[1743654960101,3.04529,1831.9,1831.8,1.37]
[1743654960306,0.87352,1831.8,1831.7,3.2078]
[1743654960503,3.07242,1831.8,1831.7,3.2078]
[1743654964406,0.87362,1831.6,1831.5,0.00819919]
[1743654964607,4.42462,1831.6,1831.5,0.00819919]
[1743654965004,5.12922,1831.6,1831.5,0.00819919]
[1743654967504,3.553,1831.7,1831.6,0.87362]
[1743654967704,3.553,1831.7,1831.6,5.57122]
[1743654968812,3.553,1831.7,1831.6,4.6976]
[1743654969008,4.42657,1831.7,1831.6,4.6976]
[1743654969309,4.42657,1831.7,1831.6,6.1629]
[1743654969499,5.82637,1831.7,1831.6,6.1629]
[1743654970405,2.27337,1831.7,1831.6,6.1629]
[1743654970605,2.27337,1831.7,1831.6,4.6731]
[1743654970802,2.99027,1831.7,1831.6,4.6731]
[1743654971812,2.1167,1831.7,1831.6,4.6731]
[1743654972008,4.2881,1831.8,1831.6,4.6731]
[1743654972212,4.2881,1831.8,1831.7,1.4005]
[1743654972711,4.2881,1831.8,1831.7,2.1114]
[1743654973317,5.7662,1831.8,1831.7,2.1114]
[1743654974614,3.551,1831.8,1831.7,2.98497]
[1743654974810,3.07805,1832.2,1831.9,0.87347]
[1743654975011,2.2047,1832.2,1832.0,5.3154]
[1743654975214,3.55,1832.2,1832.1,2.29228]
[1743654975418,11.35442,1832.8,1832.1,3.02045]
[1743654975419,5.7537,1832.4,1832.1,3.02045]
[1743654975720,0.7508,1832.7,1832.2,4.6267]
[1743654976018,3.555,1832.6,1832.4,3.2078]
[1743654976215,4.42816,1832.6,1832.5,1.4189]
[1743654976416,0.87316,1832.6,1832.5,1.4189]
[1743654977120,0.87319,1832.5,1832.4,3.2078]
[1743654977317,0.87326,1832.4,1832.2,4.6267]
[1743654977515,2.34356,1832.4,1832.3,1.4189]
[1743654978321,4.42622,1832.5,1832.3,1.4189]
[1743654978622,4.42622,1832.5,1832.4,3.2078]
[1743654980421,3.553,1832.5,1832.4,3.2078]
[1743654980615,3.553,1832.5,1832.3,1.4189]
[1743654980616,0.87324,1832.4,1832.3,1.4189]
[1743654980924,3.553,1832.5,1832.3,1.4189]
[1743654981219,3.553,1832.5,1832.4,3.2078]
[1743654981416,3.553,1832.5,1832.4,3.9117]
[1743654981915,4.42619,1832.5,1832.4,5.3036]
[1743654982115,4.42619,1832.5,1832.4,4.5997]
[1743654982611,3.553,1832.5,1832.4,4.5997]
[1743654983812,0.87314,1832.6,1832.4,4.5997]
[1743654984016,2.35833,1832.7,1832.5,1.3986]
[1743654984216,0.87314,1832.6,1832.5,1.3986]
[1743654984723,1.4162,1832.6,1832.5,1.3986]
[1743654985927,1.4852,1832.7,1832.5,2.27178]
[1743654986123,1.4852,1832.7,1832.6,3.2078]
[1743654986320,1.4852,1832.7,1832.6,4.6064]
[1743654986719,2.9882,1832.7,1832.6,4.6064]
[1743654987022,3.86129,1832.7,1832.6,4.6064]
[1743654987523,1.4852,1832.7,1832.6,4.6064]
[1743654987727,0.7344,1832.7,1832.6,4.6064]
[1743654987915,4.42106,1832.8,1832.6,4.6064]
[1743654988120,4.42106,1832.8,1832.7,1.4174]
[1743654988726,5.92406,1832.8,1832.7,1.4174]
[1743654992334,5.051,1832.8,1832.7,1.4174]
[1743654992735,5.92405,1832.8,1832.7,1.4174]
[1743654993336,5.051,1832.8,1832.7,1.4174]
[1743654993631,5.92405,1832.8,1832.7,1.4174]
[1743654994025,5.051,1832.8,1832.7,1.4174]
[1743654994428,5.92405,1832.8,1832.7,1.4174]
[1743654997239,5.051,1832.8,1832.7,1.4174]
[1743654997542,5.92405,1832.8,1832.7,1.4174]
[1743654997743,5.92405,1832.8,1832.6,3.2078]
[1743654997942,2.1973,1832.7,1832.6,4.7175]
[1743655000046,3.07039,1832.7,1832.6,4.7175]
[1743655001545,2.1973,1832.7,1832.6,4.7175]
[1743655002142,2.1973,1832.7,1832.6,5.59064]
[1743655002342,3.548,1832.8,1832.6,5.59064]
[1743655002549,4.9974,1832.8,1832.7,1.3801]
[1743655003140,5.87045,1832.8,1832.7,1.3801]
[1743655005545,4.9974,1832.8,1832.7,1.3801]
[1743655005944,0.6896,1832.9,1832.7,2.25319]
[1743655006243,3.53,1833.2,1832.9,0.873]
[1743655006453,4.40287,1833.2,1833.0,3.2078]
[1743655006641,3.76694,1833.3,1833.0,5.48174]
[1743655006843,7.29794,1833.3,1833.1,1.401]
[1743655007039,6.4251,1833.3,1833.1,1.401]
[1743655007647,7.29793,1833.3,1833.1,1.401]
[1743655007841,1.496,1833.2,1833.1,1.401]
[1743655009246,4.9291,1833.3,1833.1,2.2739]
[1743655009448,1.5068,1833.6,1833.2,3.2078]
[1743655009638,2.37947,1833.6,1833.3,3.06789]
[1743655009839,5.91447,1833.6,1833.4,1.4733]
[1743655010045,1.5068,1833.5,1833.4,1.4733]
[1743655010440,2.228,1833.5,1833.2,3.2078]
[1743655010646,0.87278,1833.4,1833.2,3.2078]
[1743655010843,0.87281,1833.3,1833.2,3.2078]
[1743655011148,1.56891,1833.3,1833.2,3.2078]
[1743655011449,1.56891,1833.3,1833.2,4.5756]
[1743655011647,1.56891,1833.3,1833.2,3.2078]
[1743655012248,5.10491,1833.3,1833.2,3.2078]
[1743655012638,4.2321,1833.3,1833.2,3.2078]
[1743655012843,3.536,1833.3,1833.2,3.2078]
[1743655013149,1.5068,1833.4,1833.2,4.5756]
[1743655013349,0.87276,1833.4,1833.3,1.3678]
[1743655013651,2.34916,1833.4,1833.3,1.3678]
[1743655014445,0.87281,1833.3,1833.2,3.2078]
[1743655014655,2.36531,1833.3,1833.2,3.2078]
[1743655014950,3.11711,1833.3,1833.2,3.2078]
[1743655015151,2.2443,1833.3,1833.2,3.2078]
[1743655015744,3.11711,1833.3,1833.2,4.6598]
[1743655016755,3.11711,1833.3,1833.2,3.2078]
[1743655019452,2.2443,1833.3,1833.2,3.2078]
[1743655019654,3.11711,1833.3,1833.2,3.2078]
[1743655019858,2.2443,1833.3,1833.2,3.2078]
[1743655020359,2.2443,1833.3,1833.2,4.6088]
[1743655020854,4.2572,1833.5,1833.2,4.6088]
[1743655021055,1.59394,1833.5,1833.3,1.401]
[1743655021256,5.12594,1833.5,1833.3,1.401]
[1743655021449,4.2532,1833.5,1833.3,2.1251]
[1743655021645,6.59751,1833.5,1833.3,2.1251]
[1743655021956,3.06551,1833.5,1833.4,4.6088]
[1743655022150,2.1928,1833.5,1833.4,4.6088]
[1743655022954,3.06551,1833.5,1833.4,4.6088]
[1743655023156,3.06551,1833.5,1833.4,1.401]
[1743655023358,3.06551,1833.5,1833.2,3.9085]
[1743655023552,2.37237,1833.4,1833.2,3.9085]
[1743655023752,0.87281,1833.3,1833.2,4.6477]
[1743655023957,2.1869,1833.3,1833.2,4.6477]
[1743655024461,3.05971,1833.3,1833.2,4.6477]
[1743655024845,3.05971,1833.3,1833.2,3.2078]
[1743655025661,6.59171,1833.3,1833.2,3.2078]
[1743655031658,5.7189,1833.3,1833.0,3.2078]
[1743655031866,5.7189,1833.3,1832.8,3.2078]
[1743655031867,0.87302,1832.9,1832.8,3.2078]
[1743655032165,0.87302,1832.9,1832.7,1.5099]
[1743655032166,0.87305,1832.8,1832.7,1.5099]
[1743655032365,3.78465,1832.8,1832.7,1.5099]
[1743655033463,2.9116,1832.8,1832.7,1.5099]
[1743655033767,3.78465,1832.8,1832.7,1.5099]
[1743655036165,0.87314,1832.6,1832.5,1.4477]
[1743655036367,0.87314,1832.6,1832.5,2.1661]
[1743655037061,2.30563,1832.7,1832.5,2.1661]
[1743655038561,0.87314,1832.6,1832.5,2.1661]
[1743655039065,0.87314,1832.6,1832.5,1.4355]
[1743655039768,4.40314,1832.6,1832.5,1.4355]
[1743655041257,4.40314,1832.6,1832.5,2.30869]
[1743655041258,3.53,1832.6,1832.5,2.30869]
[1743655041465,3.53,1832.6,1832.5,3.01379]
[1743655041769,0.8731,1832.7,1832.5,2.1406]
[1743655041970,0.8731,1832.7,1832.6,1.3912]
[1743655042174,2.2706,1832.7,1832.6,1.3912]
[1743655044869,5.85188,1832.8,1832.6,1.3912]
[1743655045071,5.85188,1832.8,1832.6,4.599]
[1743655045072,5.12378,1832.8,1832.6,4.599]
[1743655045262,5.12378,1832.8,1832.7,0.6892]
[1743655045468,5.12378,1832.8,1832.7,2.0676]
[1743655046568,0.87309,1832.7,1832.6,3.2078]
[1743655046876,3.00009,1832.7,1832.6,3.2078]
[1743655047871,3.00009,1832.7,1832.4,3.21599919]
[1743655047872,0.87319,1832.5,1832.4,3.21599919]
[1743655048175,4.40319,1832.5,1832.4,3.21599919]
[1743655048676,4.40319,1832.5,1832.4,0.00819919]
[1743655048677,5.12529,1832.5,1832.4,0.00819919]
[1743655049475,6.61519,1832.5,1832.4,0.00819919]
[1743655050377,0.87333,1832.2,1832.1,3.2078]
[1743655050572,4.40333,1832.2,1832.1,3.2078]
[1743655051270,0.87343,1832.0,1831.9,4.6772]
[1743655051470,0.87343,1832.0,1831.9,3.2078]
[1743655051875,0.87343,1832.0,1831.8,0.00819919]
[1743655051876,0.87347,1831.9,1831.8,0.00819919]
[1743655052072,4.40347,1831.9,1831.8,0.00819919]
[1743655052472,5.88617,1831.9,1831.8,0.00819919]
[1743655054575,5.0127,1831.9,1831.8,0.00819919]
[1743655054978,3.53,1831.9,1831.8,1.46669919]
[1743655055383,4.40347,1831.9,1831.8,1.46669919]
[1743655055673,5.83407,1831.9,1831.8,1.46669919]
[1743655055878,5.83407,1831.9,1831.8,0.00819919]
[1743655059989,4.9606,1831.9,1831.8,0.00819919]
[1743655060184,1.4306,1831.9,1831.8,0.00819919]
[1743655060496,3.532,1831.9,1831.8,0.00819919]
[1743655060696,3.532,1831.9,1831.8,0.73329919]
[1743655060897,3.532,1831.9,1831.8,2.12709919]
[1743655061595,3.532,1831.9,1831.8,1.40199919]
[1743655061795,4.40547,1831.9,1831.8,1.40199919]
[1743655062193,5.78577,1831.9,1831.8,1.40199919]
[1743655063489,4.9123,1831.9,1831.8,1.40199919]
[1743655063693,3.532,1831.9,1831.8,1.40199919]
[1743655063899,3.532,1831.9,1831.8,2.13389919]
[1743655064801,3.532,1831.9,1831.8,3.00741919]
[1743655065006,3.532,1831.9,1831.8,2.13389919]
[1743655065400,4.40547,1831.9,1831.8,1.40199919]
[1743655066007,6.55867,1831.9,1831.8,1.40199919]
[1743655066802,6.55867,1831.9,1831.8,4.60979919]
[1743655068306,5.10137,1831.9,1831.8,4.60979919]
[1743655069005,4.2279,1831.9,1831.8,4.60979919]
[1743655069205,3.532,1831.9,1831.8,5.30929919]
[1743655069407,3.532,1831.9,1831.8,6.18281919]
[1743655071707,5.13927919,1832.1,1831.8,6.18281919]
[1743655071898,5.13927919,1832.1,1831.9,1.4233]
[1743655072909,0.87343,1832.0,1831.9,1.4233]
[1743655073408,0.87347,1831.9,1831.8,3.21599919]
[1743655073615,2.27417,1831.9,1831.8,3.21599919]
[1743655073807,2.27417,1831.9,1831.8,4.63929919]
[1743655074411,2.27417,1831.9,1831.8,0.00819919]
[1743655079717,0.87357,1831.7,1831.6,3.2078]
[1743655079918,4.40557,1831.7,1831.6,3.2078]
[1743655080322,5.84057,1831.7,1831.6,3.2078]
[1743655081215,1.4566,1831.8,1831.6,3.2078]
[1743655081417,3.532,1831.9,1831.6,6.1475]
[1743655081624,6.4534,1832.0,1831.7,2.39056]
[1743655081817,3.533,1832.0,1831.8,4.7248]
[1743655082014,3.533,1832.0,1831.9,1.517]
[1743655082218,0.88160919,1832.1,1831.9,1.517]
[1743655082415,4.41460919,1832.1,1831.9,1.517]
[1743655082619,0.87343,1832.0,1831.9,1.517]
[1743655082820,0.88159919,1832.1,1831.9,1.517]
[1743655083926,0.00819919,1832.1,1832.0,4.08123]
[1743655084221,0.00819919,1832.1,1832.0,5.50343]
[1743655084531,0.88157919,1832.1,1832.0,3.2078]
[1743655085224,2.97307919,1832.1,1832.0,3.2078]
[1743655086020,0.00819919,1832.1,1832.0,3.2078]
[1743655086223,0.00819919,1832.1,1832.0,3.9353]
[1743655086527,0.00819919,1832.1,1832.0,4.63]
[1743655086735,0.00819919,1832.1,1832.0,6.078]
[1743655088926,0.88157919,1832.1,1832.0,3.2078]
[1743655089134,3.06337919,1832.1,1832.0,3.2078]
[1743655089832,2.18999919,1832.1,1832.0,3.2078]
[1743655090426,0.00819919,1832.1,1832.0,4.6629]
[1743655093136,0.00819919,1832.1,1832.0,8.03633]
[1743655094136,0.00819919,1832.1,1832.0,8.48219798]
[1743655094337,0.00819919,1832.1,1832.0,8.03633]
[1743655097429,0.00819919,1832.1,1832.0,5.53633]
[1743655097635,0.00819919,1832.1,1832.0,4.6629]
[1743655097933,0.88157919,1832.1,1832.0,4.6629]
[1743655098135,0.00819919,1832.1,1832.0,4.6629]
[1743655098440,0.00819919,1832.1,1832.0,5.53633]
[1743655098627,0.88157919,1832.1,1832.0,4.6629]
[1743655098826,0.00819919,1832.1,1832.0,4.6629]
[1743655099038,2.99077919,1832.1,1832.0,3.2078]
[1743655099245,2.86119919,1832.1,1832.0,3.2078]
[1743655100132,3.73457919,1832.1,1832.0,3.2078]
[1743655100839,3.73457919,1832.1,1831.8,3.2078]
[1743655100840,0.87345,1832.0,1831.8,3.2078]
[1743655101033,3.534,1831.9,1831.8,3.2078]
[1743655101432,5.0182,1831.9,1831.8,3.2078]
[1743655103831,5.89167,1831.9,1831.8,3.2078]
[1743655106139,5.0182,1831.9,1831.8,3.2078]
[1743655106833,5.89167,1831.9,1831.8,3.2078]
[1743655110236,0.87361,1831.7,1831.5,4.63929919]
[1743655110436,2.1812,1831.6,1831.5,3.21599919]
[1743655110737,6.58682,1831.6,1831.5,3.21599919]
[1743655111636,5.7132,1831.6,1831.5,3.21599919]
[1743655112036,0.6912,1831.8,1831.5,3.21599919]
[1743655112237,0.6912,1831.8,1831.7,0.87357]
[1743655112543,2.0632,1831.9,1831.6,6.94498]
[1743655112838,1.3767,1831.8,1831.7,1.4444]
[1743655113340,1.3767,1831.8,1831.6,3.2078]
[1743655113639,5.14087,1831.7,1831.6,3.2078]
[1743655116645,0.87362,1831.6,1831.5,0.00819919]
[1743655116840,2.36682,1831.6,1831.5,0.00819919]
[1743655118545,0.87367,1831.5,1831.4,3.2078]
[1743655118746,2.99527,1831.5,1831.4,3.2078]
[1743655120145,0.87371,1831.4,1831.3,0.00819919]
[1743655120357,6.51381,1831.4,1831.3,0.00819919]
[1743655124650,9.72161,1831.4,1831.3,0.00819919]
[1743655125754,6.51381,1831.4,1831.3,0.00819919]
[1743655127044,6.51381,1831.4,1831.0,3.2078]
[1743655127045,0.87386,1831.1,1831.0,3.2078]
[1743655127246,4.40986,1831.1,1831.0,4.693]
[1743655128549,3.536,1831.1,1831.0,4.693]
[1743655130656,0.87385,1831.2,1831.0,4.693]
[1743655130856,0.87385,1831.2,1831.1,1.3833]
[1743655131053,4.41085,1831.2,1831.1,1.3833]
[1743655131258,3.537,1831.2,1831.1,1.3833]
[1743655131958,4.41081,1831.2,1831.1,1.3833]
[1743655133959,3.2078,1831.8,1831.1,1.3833]
[1743655134158,0.87374,1831.4,1831.2,3.9474]
[1743655134454,0.87374,1831.4,1831.3,1.4991]
[1743655134758,4.40874,1831.4,1831.3,1.4991]
[1743655135258,4.40874,1831.4,1831.2,3.9474]
[1743655135259,0.87376,1831.3,1831.2,3.2078]
[1743655135457,3.05446,1831.3,1831.2,3.2078]
[1743655136959,0.87381,1831.2,1831.1,1.3925]
[1743655137163,2.33351,1831.2,1831.1,1.3925]
[1743655138448,0.87386,1831.1,1831.0,3.2078]
[1743655138756,4.40986,1831.1,1831.0,3.2078]
[1743655138946,5.13456,1831.1,1831.0,3.2078]
[1743655140952,0.8739,1831.0,1830.9,0.00819919]
[1743655141258,0.874,1830.8,1830.7,1.5074]
[1743655141560,4.412,1830.8,1830.7,1.5074]
[1743655143559,0.87405,1830.7,1830.6,0.00819919]
[1743655143759,3.68395,1830.7,1830.6,1.39459919]
[1743655145060,3.68395,1830.7,1830.6,0.00819919]
[1743655145860,3.68395,1830.7,1830.6,1.40819919]
[1743655146863,3.68395,1830.7,1830.6,0.00819919]
[1743655147056,6.89175,1830.7,1830.6,0.00819919]
[1743655147258,0.87423,1830.4,1830.2,1.4]
[1743655147459,3.535,1830.4,1830.2,2.113]
[1743655147962,4.40919,1830.4,1830.3,1.4977]
[1743655150161,0.87424,1830.3,1830.2,0.0054661]
[1743655150459,3.71754,1830.3,1830.2,0.0054661]
[1743655150660,3.71754,1830.3,1830.2,1.4860661]
[1743655151866,3.71754,1830.3,1830.2,0.0054661]
[1743655152068,3.71754,1830.3,1830.0,0.7183]
[1743655152069,0.87433,1830.1,1830.0,2.1989]
[1743655152370,3.535,1830.4,1830.2,0.7232]
[1743655152562,4.40919,1830.4,1830.3,1.4806]
[1743655153362,3.535,1830.4,1830.3,1.4806]
[1743655153570,4.40919,1830.4,1830.3,1.4806]
[1743655153869,4.42419,1830.4,1830.3,1.4806]
[1743655155362,0.87427,1830.3,1830.1,3.2078]
[1743655155568,3.12097,1830.3,1830.2,1.4431]
[1743655156067,5.17567,1830.3,1830.2,1.4431]
[1743655156264,1.62867,1830.3,1830.2,1.4431]
[1743655156469,5.17567,1830.3,1830.2,1.4431]
[1743655156662,3.547,1830.3,1830.2,1.4431]
[1743655157167,4.42124,1830.3,1830.2,1.4431]
[1743655157368,0.87424,1830.3,1830.2,1.4431]
[1743655157769,4.41924,1830.3,1830.2,1.4431]
[1743655157970,3.545,1830.3,1830.2,1.4431]
[1743655160466,0.87416,1830.5,1830.2,2.31739]
[1743655160671,3.542,1830.4,1830.3,3.9414]
[1743655160971,3.542,1830.4,1830.3,5.3915]
[1743655161164,1.3981,1830.7,1830.3,5.3915]
[1743655161364,3.542,1830.6,1830.5,3.2078]
[1743655161672,3.542,1830.6,1830.5,4.6579]
[1743655162669,4.4161,1830.6,1830.5,1.4501]
[1743655163064,0.87419,1830.5,1830.3,3.9414]
[1743655163272,0.87419,1830.4,1830.3,3.9414]
[1743655163569,0.87419,1830.4,1830.3,5.3371]
[1743655163762,3.80737,1830.5,1830.3,5.3371]
[1743655163966,3.80737,1830.5,1830.4,1.3957]
[1743655164875,2.9332,1830.5,1830.4,1.3957]
[1743655165069,3.542,1830.6,1830.4,1.3957]
[1743655165271,3.542,1830.6,1830.5,3.2078]
[1743655165473,3.542,1830.6,1830.5,3.9433]
[1743655165772,3.542,1830.6,1830.5,5.339]
[1743655168065,4.4161,1830.6,1830.5,5.339]
[1743655168777,4.4161,1830.6,1830.5,1.3957]
[1743655169571,5.8738,1830.6,1830.5,1.3957]
[1743655171273,0.87419,1830.4,1830.3,3.2078]
[1743655172082,0.87427,1830.3,1830.1,4.6708]
[1743655172378,5.10437,1830.3,1830.1,4.6708]
[1743655172579,3.2078,1830.5,1830.4,0.87419]
[1743655172772,0.87392,1831.0,1830.6,0.87408]
[1743655172968,2.29802,1831.0,1830.7,5.3743]
[1743655173176,1.4241,1831.0,1830.8,2.1731]
[1743655173776,4.9801,1831.0,1830.8,2.1731]
[1743655175176,5.85401,1831.0,1830.8,2.1731]
[1743655175678,1.45169919,1830.9,1830.8,2.1731]
[1743655177777,0.00819919,1830.9,1830.8,3.0471]
[1743655178376,0.00819919,1830.9,1830.8,2.1731]
[1743655180185,0.00819919,1830.9,1830.8,3.0471]
[1743655186087,0.88214919,1830.9,1830.8,1.463]
[1743655186580,3.74454919,1830.9,1830.8,1.463]
[1743655186781,2.87059919,1830.9,1830.8,1.463]
[1743655188587,2.87059919,1830.9,1830.8,2.337]
[1743655188788,0.76019919,1830.9,1830.8,1.463]
[1743655189089,0.00819919,1830.9,1830.8,3.0428]
[1743655190088,0.00819919,1830.9,1830.8,2.1688]
[1743655190383,0.88214919,1830.9,1830.8,1.463]
[1743655190585,0.00819919,1830.9,1830.8,2.337]
[1743655191289,0.00819919,1830.9,1830.8,3.08]
[1743655206203,0.00819919,1830.9,1830.7,4.08182]
[1743655206204,0.88216919,1830.9,1830.7,4.08182]
[1743655206401,2.2055,1830.8,1830.7,4.08182]
[1743655206703,2.2055,1830.8,1830.7,3.2078]
[1743655207699,3.0795,1830.8,1830.7,3.2078]
[1743655213212,2.2055,1830.8,1830.7,3.2078]
[1743655214209,3.0795,1830.8,1830.7,3.2078]
[1743655215114,2.2055,1830.8,1830.7,3.2078]
[1743655218611,3.0795,1830.8,1830.7,3.2078]
[1743655220513,2.2055,1830.8,1830.7,3.2078]
[1743655222018,3.0795,1830.8,1830.7,3.2078]
[1743655224120,2.2055,1830.8,1830.7,3.2078]
[1743655224517,3.0795,1830.8,1830.7,3.2078]
[1743655224820,0.8741,1830.6,1830.5,3.2078]
[1743655225020,4.4081,1830.6,1830.5,3.2078]
[1743655225317,4.4081,1830.6,1830.3,3.2078]
[1743655225510,2.9208,1830.5,1830.3,4.6746]
[1743655225713,1.4796,1830.4,1830.3,4.6746]
[1743655226015,1.4796,1830.4,1830.3,5.54884]
[1743655228620,0.00819919,1830.9,1830.3,4.6746]
[1743655228809,0.00819919,1830.9,1830.8,3.2078]
[1743655229124,0.00819919,1830.9,1830.8,4.6621]
[1743655229514,0.00819919,1830.9,1830.8,5.5361]
[1743655231224,0.00819919,1830.9,1830.8,4.6621]
[1743655231711,1.40879919,1830.9,1830.8,4.6621]
[1743655232224,0.69489919,1830.9,1830.8,5.5361]
[1743655232417,0.00819919,1830.9,1830.8,5.5361]
[1743655250633,1.45749919,1830.9,1830.8,5.5361]
[1743655250836,2.33144919,1830.9,1830.8,3.2078]
[1743655251136,1.45749919,1830.9,1830.8,3.2078]
[1743655251638,1.45749919,1830.9,1830.8,4.0818]
[1743655252038,1.45749919,1830.9,1830.8,5.5558]
[1743655252232,0.00819919,1830.9,1830.8,5.5558]
[1743655252531,0.00819919,1830.9,1830.8,6.2825]
[1743655253639,0.00819919,1830.9,1830.8,5.5558]
[1743655254841,0.00819919,1830.9,1830.8,6.306]
[1743655261043,3.2078,1831.7,1830.8,5.432]
[1743655261344,1.58e-06,1831.9,1831.8,0.87352]
[1743655261546,1.5057,1832.7,1832.6,0.87314]
[1743655261841,1.5057,1832.7,1832.6,4.08094]
[1743655262045,3.2078,1833.0,1832.8,0.87301]
[1743655262244,4.361,1833.1,1832.8,0.87301]
[1743655262245,1.5057,1832.9,1832.8,0.87301]
[1743655262546,2.37873,1832.9,1832.5,0.00819919]
[1743655262740,2.37873,1832.9,1832.6,0.54941043]
[1743655262941,2.37873,1832.9,1832.7,3.2078]
[1743655263144,5.1237,1832.9,1832.7,3.2078]
[1743655263442,5.99671,1832.9,1832.7,3.2078]
[1743655263646,5.1237,1832.9,1832.7,3.2078]
[1743655264040,5.1237,1832.9,1832.7,4.08088]
[1743655266549,5.1237,1832.9,1832.7,3.2078]
[1743655267952,3.612,1833.0,1832.7,4.08088]
[1743655268156,5.0949,1833.0,1832.9,3.2078]
[1743655268343,1.4829,1833.0,1832.9,3.2078]
[1743655271551,0.873,1832.9,1832.7,3.2078]
[1743655271758,1.4528,1832.8,1832.7,3.2078]
[1743655272949,2.32585,1832.8,1832.5,4.08915919]
[1743655273151,0.87314,1832.6,1832.5,0.00819919]
[1743655273451,4.48414,1832.6,1832.5,0.00819919]
[1743655273655,6.74584,1832.6,1832.5,0.00819919]
[1743655281268,0.718,1832.7,1832.5,0.00819919]
[1743655281269,0.718,1832.7,1832.5,3.21599919]
[1743655281474,0.40588889,1833.9,1832.5,3.21599919]
[1743655281475,3.2078,1834.1,1832.7,3.2078]
[1743655281769,1.4557,1833.6,1833.5,3.2078]
[1743655281979,1.4557,1833.6,1833.5,4.6206]
[1743655283070,2.32837,1833.6,1833.5,3.2078]
[1743655283378,1.4557,1833.6,1833.5,3.2078]
[1743655283674,1.4557,1833.6,1833.5,4.6206]
[1743655285271,0.00819919,1833.7,1833.5,4.6206]
[1743655285481,0.88083919,1833.7,1833.5,4.6206]
[1743655285675,9.1718,1834.6,1833.6,3.668]
[1743655285880,0.87238,1834.2,1834.1,3.2078]
[1743655286379,0.87244,1834.1,1833.7,2.2822]
[1743655286576,3.676,1834.3,1834.0,3.2078]
[1743655286771,0.87243,1834.1,1834.0,3.2078]
[1743655287279,0.87241,1834.2,1834.0,3.2078]
[1743655288180,0.87243,1834.1,1834.0,3.2078]
[1743655288674,3.67,1834.2,1833.8,3.2078]
[1743655288675,0.87252,1834.0,1833.8,3.2078]
[1743655288875,0.87244,1834.1,1833.8,3.2078]
[1743655289079,0.87244,1834.1,1833.9,1.4162]
[1743655289775,0.87252,1833.9,1833.8,3.2078]
[1743655290482,0.7021,1834.0,1833.8,3.2078]
[1743655290779,0.87252,1833.9,1833.8,3.2078]
[1743655290974,0.7021,1834.0,1833.6,4.624]
[1743655291175,7.6053,1833.9,1833.4,9.03999919]
[1743655291381,0.87267,1833.6,1833.4,9.03999919]
[1743655291575,0.87264,1833.7,1833.4,3.21599919]
[1743655291780,0.87264,1833.7,1833.5,1.3915]
[1743655292487,0.87271,1833.5,1833.4,3.21599919]
[1743655293386,3.666,1833.6,1833.4,3.21599919]
[1743655293586,4.53869,1833.6,1833.4,3.21599919]
[1743655293784,0.87271,1833.5,1833.4,3.21599919]
[1743655297083,1.57351,1833.5,1833.4,3.21599919]
[1743655298992,2.99871,1833.5,1833.4,3.21599919]
[1743655301891,10.74784,1833.5,1832.9,3.2078]
[1743655302093,2.8582,1833.5,1833.0,0.87295]
[1743655302392,0.87285,1833.3,1833.1,4.7195]
[1743655302588,4.52785,1833.3,1833.2,1.5117]
[1743655302987,0.87286,1833.2,1833.1,3.21599919]
[1743655303187,2.31316,1833.2,1833.1,3.21599919]
[1743655304394,4.52783,1833.3,1833.1,3.21599919]
[1743655304594,4.52783,1833.3,1833.2,1.4581]
[1743655304894,0.87286,1833.2,1833.1,3.21599919]
[1743655305090,2.25386,1833.2,1833.1,3.21599919]
[1743655307594,2.25386,1833.2,1833.1,0.00819919]
[1743655310598,5.89786,1833.2,1833.1,3.21599919]
[1743655310799,5.89786,1833.2,1833.1,3.78549633]
[1743655311102,4.51686,1833.2,1833.1,3.78549633]
[1743655311689,4.51686,1833.2,1833.1,3.78586677]
[1743655311895,4.51686,1833.2,1833.1,3.21599919]
[1743655314603,4.51686,1833.2,1833.1,4.63099919]
[1743655318300,4.51686,1833.2,1833.1,5.20161132]